{"text_format":"3","workbook":"xlsx","n_sheets":1,"sheets":["Протокол ШЭ ВОШ по предмету"],"not_rendered":{"defined_names":1},"read":"whole","date_system":"1900"}

{"sheet":"Протокол ШЭ ВОШ по предмету","index":0,"n_rows":80,"n_cols":15,"rows_kept":80}
["№","Фамилия","Имя","Отчество","Дата рождения","Пол","Участник с ОВЗ (да/нет)","Класс обучения","Класс участия","Балл","Максимальный балл","Статус","Призёр муниципального этапа прошлого года","ФИО учителя","Место работы учителя"]
[1,"Мирошниченко ","Валерия","Денисовна","2010-12-16","ж","нет",5,5,13,51,"Участник","нет","Волчкова Мария Андреевна","Муниципальное автономное общеобразовательное учреждение «Многопрофильный лицей №11» Советского района г.Казани"]
[2,"Мусихина","Мия","Сергеевна","2011-06-29","ж","нет",5,5,13.5,51,"Участник","нет","Волчкова Мария Андреевна","Муниципальное автономное общеобразовательное учреждение «Многопрофильный лицей №11» Советского района г.Казани"]
[3,"Галямов","Эмиль","Маратович","2011-02-24","м","нет",5,5,5.5,51,"Участник","нет","Волчкова Мария Андреевна","Муниципальное автономное общеобразовательное учреждение «Многопрофильный лицей №11» Советского района г.Казани"]
[4,"Мусина","Зарина ","Ильнаровна","2010-12-22","ж","нет",5,5,12,51,"Участник","нет","Волчкова Мария Андреевна","Муниципальное автономное общеобразовательное учреждение «Многопрофильный лицей №11» Советского района г.Казани"]
[5,"Савельева","Софья","Владиславовна","2011-04-01","ж","нет",5,5,19.5,51,"Участник","нет","Волчкова Мария Андреевна","Муниципальное автономное общеобразовательное учреждение «Многопрофильный лицей №11» Советского района г.Казани"]
[6,"Аникина","Мария","Алексеевна","2011-04-08","ж","нет",5,5,13,51,"Участник","нет","Волчкова Мария Андреевна","Муниципальное автономное общеобразовательное учреждение «Многопрофильный лицей №11» Советского района г.Казани"]
[7,"Концевая","Алена","Ивановна","2011-09-15","ж","нет",5,5,9,51,"Участник","нет","Волчкова Мария Андреевна","Муниципальное автономное общеобразовательное учреждение «Многопрофильный лицей №11» Советского района г.Казани"]
[8,"Шарипова ","Риана","Маратовна","2009-11-08","ж","нет",7,7,13,59,"Участник","нет","Волчкова Мария Андреевна","Муниципальное автономное общеобразовательное учреждение «Многопрофильный лицей №11» Советского района г.Казани"]
[9,"Халикова","Сабина","Маратовна","2009-01-11","ж","нет",7,7,8.5,59,"Участник","нет","Волчкова Мария Андреевна","Муниципальное автономное общеобразовательное учреждение «Многопрофильный лицей №11» Советского района г.Казани"]
[10,"Эфендиева","Лейла","Яверовна","2009-03-10","ж","нет",7,7,30,59,"призер","нет","Коновалова Елена Геннадьевна","Муниципальное автономное общеобразовательное учреждение \"Лицей №11\" г.Казани Республики Татарстан"]
[11,"Мухтарова","Алия","Ленаровна","2009-04-27","ж","нет",7,7,"32.5",59,"призер","нет","Коновалова Елена Геннадьевна","Муниципальное автономное общеобразовательное учреждение \"Лицей №11\" г.Казани Республики Татарстан"]
[12,"Фаткуллина","Дарья","Ильшатовна","2008-01-18","ж","нет",8,8,33.5,59,"призер","нет","Коновалова Елена Геннадьевна","Муниципальное автономное общеобразовательное учреждение \"Лицей №11\" г.Казани Республики Татарстан"]
[13,"Давыдова","Алиса","Арсеновна","2008-06-24","ж","нет",8,8,30,59,"призер","нет","Коновалова Елена Геннадьевна","Муниципальное автономное общеобразовательное учреждение \"Лицей №11\" г.Казани Республики Татарстан"]
[14,"Хабибуллина","Ангелина","Эльбековна","2008-05-23","ж","нет",8,8,28.5,59,"призер","нет","Коновалова Елена Геннадьевна","Муниципальное автономное общеобразовательное учреждение \"Лицей №11\" г.Казани Республики Татарстан"]
[15,"Волоскова","Елизавета","Сергеевна","2009-04-07","ж","нет",8,8,32,59,"призер","нет","Коновалова Елена Геннадьевна","Муниципальное автономное общеобразовательное учреждение \"Лицей №11\" г.Казани Республики Татарстан"]
[16,"Баранова","Валерия","Алексеевна","2009-01-19","ж","нет",8,8,31.5,59,"призер","да","Коновалова Елена Геннадьевна","Муниципальное автономное общеобразовательное учреждение \"Лицей №11\" г.Казани Республики Татарстан"]
[17,"Натапова","Анастасия","Артуровна","2005-07-05","ж","нет",11,11,41,63,"призер","да","Коновалова Елена Геннадьевна","Муниципальное автономное общеобразовательное учреждение \"Лицей №11\" г.Казани Республики Татарстан"]
[18,"Гараева","Динара","Айратовна","2004-11-26","ж","нет",11,11,41.5,63,"призер","да","Коновалова Елена Геннадьевна","Муниципальное автономное общеобразовательное учреждение \"Лицей №11\" г.Казани Республики Татарстан"]
[19,"Акбарова","Зарина","Артуровна","2010-05-18","Ж","нет",6,6,16.5,51,"Участник","нет","Козенкова Ксения Андреевна","Муниципальное автономное общеобразовательное учреждение \"Многопрофильный лицей №11\" г.Казани Республики Татарстан"]
[20,"Ахметова ","Самира ","Руслановна","2022-09-12","Ж",{"$f":"$G$2","v":"нет"},6,6,8.5,51,"Участник","нет","Козенкова Ксения Андреевна","Муниципальное автономное общеобразовательное учреждение \"Многопрофильный лицей №11\" г.Казани Республики Татарстан"]
[21,"Ишмуратов ","Родион","Русланович","2010-03-26","М","нет",6,6,6,51,"Участник","нет","Козенкова Ксения Андреевна","Муниципальное автономное общеобразовательное учреждение \"Многопрофильный лицей №11\" г.Казани Республики Татарстан"]
[22,"Матасова","Эмма","Климовна","2022-07-09","Ж","нет",{"$f":"$H$2","v":5},6,11,51,{"$f":"$L$4","v":"Участник"},{"$f":"$M$2","v":"нет"},{"$f":"$N$4","v":"Волчкова Мария Андреевна"},{"$f":"$O$4","v":"Муниципальное автономное общеобразовательное учреждение «Многопрофильный лицей №11» Советского района г.Казани"}]
[23,"Муртазина","Айсылу","Ильнуровна","2010-07-22","Ж","нет",5,6,4.5,51,{"$f":"$L$4","v":"Участник"},"нет","Волчкова Мария Андреевна","Муниципальное автономное общеобразовательное учреждение «Многопрофильный лицей №11» Советского района г.Казани"]
[24,"Самигуллин","Салих","Шамилевич","2010-03-03","М","нет",5,6,11.5,51,"Участник","нет","Волчкова Мария Андреевна","Муниципальное автономное общеобразовательное учреждение «Многопрофильный лицей №11» Советского района г.Казани"]
[25,"Толстокорова","София","Евгеньевна","2010-11-09","Ж","нет",6,6,2,51,"Участник","нет","Волчкова Мария Андреевна","Муниципальное автономное общеобразовательное учреждение «Многопрофильный лицей №11» Советского района г.Казани"]
[26,"Хакимуллина","Саида","Азатовна","2010-09-10","Ж","нет",6,6,3,51,"Участник","нет","Волчкова Мария Андреевна","Муниципальное автономное общеобразовательное учреждение «Многопрофильный лицей №11» Советского района г.Казани"]
[27,"Хамматова","Чулпан","Иршатовна","2011-01-24","Ж","нет",6,6,21.5,51,"Участник","нет","Волчкова Мария Андреевна","Муниципальное автономное общеобразовательное учреждение «Многопрофильный лицей №11» Советского района г.Казани"]
[28,"Галиева ","Ангелина ","Артуровна","2012-12-12","Ж","нет",4,4,2,38,"Участник","нет","Козенкова Ксения Андреевна","Муниципальное автономное общеобразовательное учреждение \"Многопрофильный лицей №11\" г.Казани Республики Татарстан"]
[29,"Закирова ","Дина ","Руслановна","2012-04-20","Ж","нет",4,4,4,{"$f":"$K$2","v":51},"Участник","нет","Козенкова Ксения Андреевна","Муниципальное автономное общеобразовательное учреждение \"Многопрофильный лицей №11\" г.Казани Республики Татарстан"]
[30,"Сабирова ","Азалия ","Алмазовна","2012-07-04","Ж","нет",4,4,3,51,"Участник","нет","Козенкова Ксения Андреевна","Муниципальное автономное общеобразовательное учреждение \"Многопрофильный лицей №11\" г.Казани Республики Татарстан"]
[31,"Салихова ","Дина ","Руслановна","2012-10-25",{"$f":"F29","v":"Ж"},"нет",4,4,17.5,51,{"$f":"L29","v":"Участник"},"нет",{"$f":"N29","v":"Козенкова Ксения Андреевна"},"Муниципальное автономное общеобразовательное учреждение \"Многопрофильный лицей №11\" г.Казани Республики Татарстан"]
[32,"Хворова ","Злата ","Денисовна","2011-11-13","Ж","нет",4,4,3,51,"Участник",{"$f":"M29","v":"нет"},"Козенкова Ксения Андреевна","Муниципальное автономное общеобразовательное учреждение \"Многопрофильный лицей №11\" г.Казани Республики Татарстан"]
[33,"Шаклеин ","Родион ","Эдуардович","2012-02-10","М","нет",4,4,13,51,"Участник","нет","Козенкова Ксения Андреевна","Муниципальное автономное общеобразовательное учреждение \"Многопрофильный лицей №11\" г.Казани Республики Татарстан"]
[34,"Панасюк ","Кирилл","Михайлович","2012-01-25","М","нет",4,4,1.5,38,"Участник","нет","Хайбриева Алина Ленаровна","Муниципальное автономное общеобразовательное учреждение \"Лицей №11\" г.Казани Республики Татарстан"]
[35,"Сафина ","Динара","Даниловна","2012-09-09","Ж","нет",4,4,2,38,"Участник","нет","Хайбриева Алина Ленаровна","Муниципальное автономное общеобразовательное учреждение \"Лицей №11\" г.Казани Республики Татарстан"]
[36,"Шарипова","Амина","Рустемовна","2012-02-03","Ж","нет",4,4,2,38,"Участник","нет","Хайбриева Алина Ленаровна","Муниципальное автономное общеобразовательное учреждение \"Лицей №11\" г.Казани Республики Татарстан"]
[37,"Мухаметдинова ","Лиана ","Руслановна","2012-06-21","ж","нет",4,4,9.5,38,"Участник","нет","Салахова Марина Владимировна","Муниципальное автономное общеобразовательное учреждение \"Лицей №11\" г.Казани Республики Татарстан"]
[38,"Ерофеева ","Елизавета ","Васильевна ","2012-04-14","ж","нет",4,4,6,38,"Участник","нет","Салахова Марина Владимировна","Муниципальное автономное общеобразовательное учреждение \"Лицей №11\" г.Казани Республики Татарстан"]
[39,"Вагизова ","Дана ","Айдаровна ","2012-02-27","ж","нет",4,4,1.5,38,"Участник","нет","Салахова Марина Владимировна","Муниципальное автономное общеобразовательное учреждение \"Лицей №11\" г.Казани Республики Татарстан"]
[40,"Хусаинова ","Диляра ","Дамировна ","2012-06-15","ж","нет",4,4,3.5,38,"Участник","нет","Салахова Марина Владимировна","Муниципальное автономное общеобразовательное учреждение \"Лицей №11\" г.Казани Республики Татарстан"]
[41,"Панфилова ","София ","Александровна ","2011-11-09","ж","нет",4,4,7,38,"Участник","нет","Салахова Марина Владимировна","Муниципальное автономное общеобразовательное учреждение \"Лицей №11\" г.Казани Республики Татарстан"]
[42,"Галимова ","Эльвина ","Фанисовна ","2012-11-24","ж","нет",4,4,3,38,"Участник","нет","Салахова Марина Владимировна","Муниципальное автономное общеобразовательное учреждение \"Лицей №11\" г.Казани Республики Татарстан"]
[43,"Шайхутдинова ","Риана ","Айратовна ","2012-05-22","ж","нет",4,4,5,38,"Участник","нет","Салахова Марина Владимировна","Муниципальное автономное общеобразовательное учреждение \"Лицей №11\" г.Казани Республики Татарстан"]
[44,"Сулейманова ","Ясмина ","Динаровна ","2012-06-19","ж","нет",4,4,3.5,38,"Участник","нет","Салахова Марина Владимировна","Муниципальное автономное общеобразовательное учреждение \"Лицей №11\" г.Казани Республики Татарстан"]
[45,"Флегентов ","Глеб ","Павлович ","2012-03-01","м","нет",4,4,5,38,"Участник","нет","Салахова Марина Владимировна","Муниципальное автономное общеобразовательное учреждение \"Лицей №11\" г.Казани Республики Татарстан"]
[46,"Чабанов ","Дмитрий ","Сергеевич ","2011-12-16","м","нет",4,4,2,38,"Участник","нет","Салахова Марина Владимировна","Муниципальное автономное общеобразовательное учреждение \"Лицей №11\" г.Казани Республики Татарстан"]
[47,"Бурнашев","Эльдар","Русланович","2011-02-24","м","нет",5,5,21,51,"Участник ","нет","Виноградова Анастасия Александровна","Муниципальное автономное общеобразовательное учреждение \"Лицей №11\" г.Казани Республики Татарстан"]
[48,"Вагапова","Даяна","Рустемовна","2011-06-20","ж","нет",5,5,22,51,"Участник ","нет","Виноградова Анастасия Александровна","Муниципальное автономное общеобразовательное учреждение \"Лицей №11\" г.Казани Республики Татарстан"]
[49,"Закирова ","Эмиль","Ильдарович","2011-01-27","м","нет",5,5,13.5,51,"Участник","да","Виноградова Анастасия Александровна","Муниципальное автономное общеобразовательное учреждение \"Лицей №11\" г.Казани Республики Татарстан"]
[50,"Марточкина ","Владислава","Дмитриевна","2011-03-28","ж","нет",5,5,9,51,"Участник","нет","Виноградова Анастасия Александровна","Муниципальное автономное общеобразовательное учреждение \"Лицей №11\" г.Казани Республики Татарстан"]
[51,"Нвзипова ","Амелия ","Руслановна","2011-03-02","ж","нет",5,5,17,51,"Участник","нет","Виноградова Анастасия Александровна","Муниципальное автономное общеобразовательное учреждение \"Лицей №11\" г.Казани Республики Татарстан"]
[52,"Погодина ","Вероника","Максимовна","2011-07-18","ж","нет",5,5,26,51,"Призёр","нет","Виноградова Анастасия Александровна","Муниципальное автономное общеобразовательное учреждение \"Лицей №11\" г.Казани Республики Татарстан"]
[53,"Шайхутдинова ","Элеонора","Ильшатовна","2011-04-21","ж","нет",5,5,34,51,"Призёр","нет","Виноградова Анастасия Александровна","Муниципальное автономное общеобразовательное учреждение \"Лицей №11\" г.Казани Республики Татарстан"]
[54,"Байдерякова","Дарья ","Германовна","2009-10-05","ж","нет",6,6,22,51,"Призёр","нет","Виноградова Анастасия Александровна","Муниципальное автономное общеобразовательное учреждение \"Лицей №11\" г.Казани Республики Татарстан"]
[55,"Галимова ","Камелия","Радиковна","2010-12-04","ж","нет",6,6,17,51,"Участник","нет","Виноградова Анастасия Александровна","Муниципальное автономное общеобразовательное учреждение \"Лицей №11\" г.Казани Республики Татарстан"]
[56,"Кондратьев","Роман","Евгеньвич","2010-09-05","м","нет",6,6,26,51,"Призёр","нет","Виноградова Анастасия Александровна","Муниципальное автономное общеобразовательное учреждение \"Лицей №11\" г.Казани Республики Татарстан"]
[57,"Мазуренко","София","Юрьевна","2010-09-06","ж","нет",6,6,18.5,51,"Участник","нет","Виноградова Анастасия Александровна","Муниципальное автономное общеобразовательное учреждение \"Лицей №11\" г.Казани Республики Татарстан"]
[58,"Осмоналиев","Даниэль","Икарович","2010-02-13","м","нет",6,6,13,51,"Участник","нет","Виноградова Анастасия Александровна","Муниципальное автономное общеобразовательное учреждение \"Лицей №11\" г.Казани Республики Татарстан"]
[59,"Шарафутдинов","Эмиль","Айдарович","2010-05-13","м","нет",6,6,29,51,"Участник","нет","Виноградова Анастасия Александровна","Муниципальное автономное общеобразовательное учреждение \"Лицей №11\" г.Казани Республики Татарстан"]
[60,"Гилемханов","Тимерхан","Вильданович","2009-09-04","м","нет",7,7,9,59,"Участник","нет","Виноградова Анастасия Александровна","Муниципальное автономное общеобразовательное учреждение \"Лицей №11\" г.Казани Республики Татарстан"]
[61,"Миниахметов","Артур","Рустамович","2009-09-07","м","нет",7,7,14,59,"Участник","нет","Виноградова Анастасия Александровна","Муниципальное автономное общеобразовательное учреждение \"Лицей №11\" г.Казани Республики Татарстан"]
[62,"Логинова","Елизавета","Максимовна","2010-11-04","ж","нет",6,6,29,51,"Призёр","нет","Хасанова Гузель Абузаровна","Муниципальное автономное общеобразовательное учреждение \"Лицей №11\" г.Казани Республики Татарстан"]
[63,"Биканов","Яромир","Игоревич","2010-06-05","м","нет",6,6,6.5,40,"Участник","нет","Осипанова Наталья Геннадьевна","Муниципальное автономное образовательное учреждение \"Лицей №11\" г.Казани Республики Татарстан"]
[64,"Гилязов ","Ильдар","Динарович","2010-05-21","м","нет",6,6,5,40,"участник","нет","Осипанова Наталья Геннадьевна","Муниципальное автономное образовательное учреждение \"Лицей №11\" г.Казани Республики Татарстан"]
[65,"Назмутдинов","Арслан","Азатович","2010-10-06","м","нет",6,6,8,40,"участник","нет","Осипанова Наталья Геннадьевна","Муниципальное автономное образовательное учреждение \"Лицей №11\" г.Казани Республики Татарстан"]
[66,"Панкова ","Агния","Алексеевна","2010-06-09","ж","нет",6,6,6,40,"участник","нет","Осипанова Наталья Геннадьевна","Муниципальное автономное образовательное учреждение \"Лицей №11\" г.Казани Республики Татарстан"]
[67,"Мельникова","Елизавета","Романовна","2008-05-07","ж","нет",8,8,5,59,"участник","нет","Осипанова Наталья Геннадьевна","Муниципальное автономное образовательное учреждение \"Лицей №11\" г.Казани Республики Татарстан"]
[68,"Кузьмина","Кристина","Максимовна","2008-12-02","ж","нет",8,8,15.5,59,"участник","нет","Осипанова Наталья Геннадьевна","Муниципальное автономное образовательное учреждение \"Лицей №11\" г.Казани Республики Татарстан"]
[69,"Курмашева","Алия","Рустемовна","2008-05-23","ж","нет",8,8,20.5,59,"участник","нет","Осипанова Наталья Геннадьевна","Муниципальное автономное образовательное учреждение \"Лицей №11\" г.Казани Республики Татарстан"]
[70,"Салимова","Милана","Фаридовна","2008-08-08","ж","нет",8,8,5,59,"участник","нет","Осипанова Наталья Геннадьевна","Муниципальное автономное образовательное учреждение \"Лицей №11\" г.Казани Республики Татарстан"]
[71,"Скобельцына","Арина","Олеговна","2008-10-18","ж","нет",8,8,20.5,59,"участник","нет","Осипанова Наталья Геннадьевна","Муниципальное автономное образовательное учреждение \"Лицей №11\" г.Казани Республики Татарстан"]
[72,"Вагапова","Далила","Рустемовна","2007-07-31","ж","нет",9,9,7,63,"участник","нет","Осипанова Наталья Геннадьевна","Муниципальное автономное образовательное учреждение \"Лицей №11\" г.Казани Республики Татарстан"]
[73,"Газиева","Рузиля","Рамилевна","2008-05-27","ж","нет",9,9,10,63,"участник","нет","Осипанова Наталья Геннадьевна","Муниципальное автономное образовательное учреждение \"Лицей №11\" г.Казани Республики Татарстан"]
[74,"Зайцева","Ксения","Кирилловна","2007-06-09","ж","нет",9,9,7,63,"участник","нет","Осипанова Наталья Геннадьевна","Муниципальное автономное образовательное учреждение \"Лицей №11\" г.Казани Республики Татарстан"]
[75,"Крайнова","Кристина","Алексеевна","2007-10-11","ж","нет",9,9,15,63,"участник","нет","Осипанова Наталья Геннадьевна","Муниципальное автономное образовательное учреждение \"Лицей №11\" г.Казани Республики Татарстан"]
[76,"Марточкина","Варвара","Дмитриевна","2007-05-23","ж","нет",9,9,7,63,"участник","нет","Осипанова Наталья Геннадьевна","Муниципальное автономное образовательное учреждение \"Лицей №11\" г.Казани Республики Татарстан"]
[77,"Минуллина ","Альбина","Азатовна","2007-09-13","ж","нет",9,9,15,63,"участник","нет","Осипанова Наталья Геннадьевна","Муниципальное автономное образовательное учреждение \"Лицей №11\" г.Казани Республики Татарстан"]
[78,"Мухаметова ","Аделя ","Ленаровна","2007-01-12","ж","нет",9,9,5,63,"участник","нет","Осипанова Наталья Геннадьевна","Муниципальное автономное образовательное учреждение \"Лицей №11\" г.Казани Республики Татарстан"]
[79,"Шубенкина","Диана ","Максимовна","2007-08-19","ж6","нет",9,9,8,63,"участник","нет","Осипанова Наталья Геннадьевна","Муниципальное автономное образовательное учреждение \"Лицей №11\" г.Казани Республики Татарстан"]